{"text_format":"3","workbook":"xlsx","n_sheets":5,"sheets":["Descrição Geral da Festa","Lista de Convidados","Comida e Bebida","Outros Elementos Essenciais","Grelha Distribuição de Assentos"],"not_rendered":{"defined_names":9},"read":"whole","date_system":"1900"}

{"sheet":"Descrição Geral da Festa","index":0,"n_rows":21,"n_cols":8,"rows_kept":21,"merged":[[6,3,6,4],[6,5,6,6],[9,1,9,2]]}
[]
[]
[null,"Descrição Geral da Festa"]
[]
[]
[null,"EVENTO",null,"RESUMO DE CONVIDADOS",{"$nulls":3},{"$f":"\"CONFIRMAÇÕES PENDENTES: \"&ConfirmaçõesPendentes","v":"CONFIRMAÇÕES PENDENTES: 2"}]
[null,"75º Aniversário da Avó",null,"DESCRIÇÃO GERAL DO RESPONDER S. F. F.",null,"CUSTOS POR CONVIDADO",null,"QUANTIA DO ORÇAMENTO"]
[{"$nulls":3},"Convidados Confirmados","Total de Confirmados","Comida","Outros","Total"]
[null,"DATA",null,"Adultos",{"$f":"SUMIF(TabelaConvidados[A COMPARECER?],\"=Sim\",TabelaConvidados[ADULTOS])","v":26},{"$f":"TabelaComida[[#Totals],[CUSTO POR ADULTO]]","v":{"v":12.690089084110037,"d":"12.69 €"}},{"$f":"CustoEssencialPorConvidado","v":{"v":18.695652173913043,"d":"18.70 €"}},{"$f":"(ResumoParticipantes[[#This Row],[Comida]]+ResumoParticipantes[[#This Row],[Outros]])*TotalAdultos","v":{"v":816.0292727086002,"d":"816.03 €"}}]
[null,"14 De Junho De 2011",null,"Crianças",{"$f":"SUMIF(TabelaConvidados[A COMPARECER?],\"=Sim\",TabelaConvidados[CRIANÇAS])","v":20},{"$f":"TabelaComida[[#Totals],[CUSTO POR CRIANÇA]]","v":{"v":7.252884190656953,"d":"7.25 €"}},{"$f":"CustoEssencialPorConvidado","v":{"v":18.695652173913043,"d":"18.70 €"}},{"$f":"(ResumoParticipantes[[#This Row],[Comida]]+ResumoParticipantes[[#This Row],[Outros]])*TotalCrianças","v":{"v":518.9707272914,"d":"518.97 €"}}]
[{"$nulls":3},"Total",{"$f":"SUBTOTAL(109,ResumoParticipantes[Total de Confirmados])","v":46},{"$f":"\"Méd.     \"&TEXT(SUBTOTAL(101,ResumoParticipantes[Comida]),\"#.##0,00 €\")","v":"Méd.     9,97 €"},{"$f":"\"Méd.     \"&TEXT(SUBTOTAL(101,ResumoParticipantes[Outros]),\"#.##0,00 €\")","v":"Méd.     18,70 €"},{"$f":"SUBTOTAL(109,ResumoParticipantes[Total])","v":{"v":1335,"d":"1,335.00 €"}}]
[null,"HORA"]
[null,"Das 14:00 às 16:00"]
[]
[null,"LOCALIZAÇÃO",null,"RESUMO DO ORÇAMENTO"]
[null,"Casa da tia Paula",null,"ITEM","CONTAGEM","QUANTIA DO ORÇAMENTO","CUSTO TOTAL","DIFERENÇA"]
[{"$nulls":3},"Comida e Bebida",{"$f":"COUNTA(TabelaComida[ITEM DE COMIDA OU BEBIDA])","v":18},{"v":500,"d":"500.00 €"},{"$f":"TabelaComida[[#Totals],[CUSTO TOTAL]]","v":{"v":475,"d":"475.00 €"}},{"$f":"DescriçãoGeralOrçamento[[#This Row],[QUANTIA DO ORÇAMENTO]]-DescriçãoGeralOrçamento[[#This Row],[CUSTO TOTAL]]","v":{"v":25,"d":"25.00 €"}}]
[{"$nulls":3},{"$f":"Tabela1Cabeçalho","v":"Equipamento e Consumíveis"},{"$f":"COUNTA(Tabela1Orçamento[Equipamento e Consumíveis])","v":7},{"v":400,"d":"400.00 €"},{"$f":"Tabela1Orçamento[[#Totals],[Custo]]","v":{"v":400,"d":"400.00 €"}},{"$f":"DescriçãoGeralOrçamento[[#This Row],[QUANTIA DO ORÇAMENTO]]-DescriçãoGeralOrçamento[[#This Row],[CUSTO TOTAL]]","v":{"v":0,"d":"0.00 €"}}]
[{"$nulls":3},{"$f":"Tabela2Cabeçalho","v":"Decorações"},{"$f":"COUNTA(Tabela2Orçamento[Decorações])","v":4},{"v":150,"d":"150.00 €"},{"$f":"Tabela2Orçamento[[#Totals],[Custo]]","v":{"v":175,"d":"175.00 €"}},{"$f":"DescriçãoGeralOrçamento[[#This Row],[QUANTIA DO ORÇAMENTO]]-DescriçãoGeralOrçamento[[#This Row],[CUSTO TOTAL]]","v":{"v":-25,"d":"-25.00 €"}}]
[{"$nulls":3},{"$f":"Tabela3Cabeçalho","v":"Outros"},{"$f":"COUNTA(Tabela3Orçamento[Outros])","v":4},{"v":300,"d":"300.00 €"},{"$f":"Tabela3Orçamento[[#Totals],[Custo]]","v":{"v":285,"d":"285.00 €"}},{"$f":"DescriçãoGeralOrçamento[[#This Row],[QUANTIA DO ORÇAMENTO]]-DescriçãoGeralOrçamento[[#This Row],[CUSTO TOTAL]]","v":{"v":15,"d":"15.00 €"}}]
[{"$nulls":3},"Total",{"$f":"SUBTOTAL(109,DescriçãoGeralOrçamento[CONTAGEM])","v":33},{"$f":"SUBTOTAL(109,DescriçãoGeralOrçamento[QUANTIA DO ORÇAMENTO])","v":{"v":1350,"d":"1,350.00 €"}},{"$f":"SUBTOTAL(109,DescriçãoGeralOrçamento[CUSTO TOTAL])","v":{"v":1335,"d":"1,335.00 €"}},{"$f":"SUBTOTAL(109,DescriçãoGeralOrçamento[DIFERENÇA])","v":{"v":15,"d":"15.00 €"}}]

{"sheet":"Lista de Convidados","index":1,"n_rows":22,"n_cols":12,"rows_kept":22}
[]
[]
[null,"Lista de Convidados"]
[]
[]
[]
[null,"NOME","MORADA","LOCALIDADE","DISTRITO","CÓDIGO POSTAL","TELEFONE","CORREIO ELETRÓNICO","A COMPARECER?","CRIANÇAS","ADULTOS","TOTAL"]
[null,"Família 1","Morada 1","Localidade 1","Distrito 1","Código Postal 1","Telefone 1","Correio eletrónico 1","Não",2,2,{"$f":"SUM(TabelaConvidados[[#This Row],[CRIANÇAS]:[ADULTOS]])","v":4}]
[null,"Família 2","Morada 2","Localidade 2","Distrito 2","Código Postal 2","Telefone 2","Correio eletrónico 2","Sim",1,1,{"$f":"SUM(TabelaConvidados[[#This Row],[CRIANÇAS]:[ADULTOS]])","v":2}]
[null,"Família 3","Morada 3","Localidade 3","Distrito 3","Código Postal 3","Telefone 3","Correio eletrónico 3","Sim",3,3,{"$f":"SUM(TabelaConvidados[[#This Row],[CRIANÇAS]:[ADULTOS]])","v":6}]
[null,"Família 4","Morada 4","Localidade 4","Distrito 4","Código Postal 4","Telefone 4","Correio eletrónico 4",null,null,2,{"$f":"SUM(TabelaConvidados[[#This Row],[CRIANÇAS]:[ADULTOS]])","v":2}]
[null,"Família 5","Morada 5","Localidade 5","Distrito 5","Código Postal 5","Telefone 5","Correio eletrónico 5","Sim",4,3,{"$f":"SUM(TabelaConvidados[[#This Row],[CRIANÇAS]:[ADULTOS]])","v":7}]
[null,"Família 6","Morada 6","Localidade 6","Distrito 6","Código Postal 6","Telefone 6","Correio eletrónico 6","Sim",2,2,{"$f":"SUM(TabelaConvidados[[#This Row],[CRIANÇAS]:[ADULTOS]])","v":4}]
[null,"Família 7","Morada 7","Localidade 7","Distrito 7","Código Postal 7","Telefone 7","Correio eletrónico 7","Sim",1,4,{"$f":"SUM(TabelaConvidados[[#This Row],[CRIANÇAS]:[ADULTOS]])","v":5}]
[null,"Família 8","Morada 8","Localidade 8","Distrito 8","Código Postal 8","Telefone 8","Correio eletrónico 8","Não",5,3,{"$f":"SUM(TabelaConvidados[[#This Row],[CRIANÇAS]:[ADULTOS]])","v":8}]
[null,"Família 9","Morada 9","Localidade 9","Distrito 9","Código Postal 9","Telefone 9","Correio eletrónico 9","Sim",3,2,{"$f":"SUM(TabelaConvidados[[#This Row],[CRIANÇAS]:[ADULTOS]])","v":5}]
[null,"Família 10","Morada 10","Localidade 10","Distrito 10","Código Postal 10","Telefone 10","Correio eletrónico 10","Sim",null,4,{"$f":"SUM(TabelaConvidados[[#This Row],[CRIANÇAS]:[ADULTOS]])","v":4}]
[null,"Família 11","Morada 11","Localidade 11","Distrito 11","Código Postal 11","Telefone 11","Correio eletrónico 11","Sim",3,5,{"$f":"SUM(TabelaConvidados[[#This Row],[CRIANÇAS]:[ADULTOS]])","v":8}]
[null,"Família 12","Morada 12","Localidade 12","Distrito 12","Código Postal 12","Telefone 12","Correio eletrónico 12","Não",2,3,{"$f":"SUM(TabelaConvidados[[#This Row],[CRIANÇAS]:[ADULTOS]])","v":5}]
[null,"Família 13","Morada 13","Localidade 13","Distrito 13","Código Postal 13","Telefone 13","Correio eletrónico 13","Sim",3,2,{"$f":"SUM(TabelaConvidados[[#This Row],[CRIANÇAS]:[ADULTOS]])","v":5}]
[null,"Família 14","Morada 14","Localidade 14","Distrito 14","Código Postal 14","Telefone 14","Correio eletrónico 14","Não",null,1,{"$f":"SUM(TabelaConvidados[[#This Row],[CRIANÇAS]:[ADULTOS]])","v":1}]
[null,"Família 15","Morada 15","Localidade 15","Distrito 15","Código Postal 15","Telefone 15","Correio eletrónico 15",null,null,2,{"$f":"SUM(TabelaConvidados[[#This Row],[CRIANÇAS]:[ADULTOS]])","v":2}]

{"sheet":"Comida e Bebida","index":2,"n_rows":25,"n_cols":10,"rows_kept":25}
[]
[]
[null,"Comida e Bebida"]
[]
[null,"Introduza o custo e as porções estimadas para calcular automaticamente o total de peças e o custo por porção, com base no total de convidados presentes"]
[null,"ITEM DE COMIDA OU BEBIDA","CUSTO TOTAL","PORÇÃO POR CRIANÇA","PORÇÃO POR ADULTO","TOTAL DE PORÇÕES","CUSTO POR PORÇÃO","CUSTO POR CRIANÇA","CUSTO POR ADULTO","NOTAS"]
[null,"Refrigerantes",{"v":15,"d":"15.00 €"},0.5,2,{"$f":"(TabelaComida[[#This Row],[PORÇÃO POR CRIANÇA]]*TotalCrianças)+(TabelaComida[[#This Row],[PORÇÃO POR ADULTO]]*TotalAdultos)","v":62},{"$f":"IFERROR(TabelaComida[[#This Row],[CUSTO TOTAL]]/TabelaComida[[#This Row],[TOTAL DE PORÇÕES]],\"\")","v":{"v":0.24193548387096775,"d":"0.24 €"}},{"$f":"IFERROR(TabelaComida[[#This Row],[CUSTO POR PORÇÃO]]*TabelaComida[[#This Row],[PORÇÃO POR CRIANÇA]],\"\")","v":{"v":0.12096774193548387,"d":"0.12 €"}},{"$f":"IFERROR(TabelaComida[[#This Row],[CUSTO POR PORÇÃO]]*TabelaComida[[#This Row],[PORÇÃO POR ADULTO]],\"\")","v":{"v":0.4838709677419355,"d":"0.48 €"}},"Garrafas de 2 litros"]
[null,"Pacotes de sumo",{"v":15,"d":"15.00 €"},2,0,{"$f":"(TabelaComida[[#This Row],[PORÇÃO POR CRIANÇA]]*TotalCrianças)+(TabelaComida[[#This Row],[PORÇÃO POR ADULTO]]*TotalAdultos)","v":40},{"$f":"IFERROR(TabelaComida[[#This Row],[CUSTO TOTAL]]/TabelaComida[[#This Row],[TOTAL DE PORÇÕES]],\"\")","v":{"v":0.375,"d":"0.38 €"}},{"$f":"IFERROR(TabelaComida[[#This Row],[CUSTO POR PORÇÃO]]*TabelaComida[[#This Row],[PORÇÃO POR CRIANÇA]],\"\")","v":{"v":0.75,"d":"0.75 €"}},{"$f":"IFERROR(TabelaComida[[#This Row],[CUSTO POR PORÇÃO]]*TabelaComida[[#This Row],[PORÇÃO POR ADULTO]],\"\")","v":{"v":0,"d":"0.00 €"}},"Maçãs e uvas brancas"]
[null,"Vinho",{"v":50,"d":"50.00 €"},0,2,{"$f":"(TabelaComida[[#This Row],[PORÇÃO POR CRIANÇA]]*TotalCrianças)+(TabelaComida[[#This Row],[PORÇÃO POR ADULTO]]*TotalAdultos)","v":52},{"$f":"IFERROR(TabelaComida[[#This Row],[CUSTO TOTAL]]/TabelaComida[[#This Row],[TOTAL DE PORÇÕES]],\"\")","v":{"v":0.9615384615384616,"d":"0.96 €"}},{"$f":"IFERROR(TabelaComida[[#This Row],[CUSTO POR PORÇÃO]]*TabelaComida[[#This Row],[PORÇÃO POR CRIANÇA]],\"\")","v":{"v":0,"d":"0.00 €"}},{"$f":"IFERROR(TabelaComida[[#This Row],[CUSTO POR PORÇÃO]]*TabelaComida[[#This Row],[PORÇÃO POR ADULTO]],\"\")","v":{"v":1.9230769230769231,"d":"1.92 €"}}]
[null,"Bolo",{"v":75,"d":"75.00 €"},1,1,{"$f":"(TabelaComida[[#This Row],[PORÇÃO POR CRIANÇA]]*TotalCrianças)+(TabelaComida[[#This Row],[PORÇÃO POR ADULTO]]*TotalAdultos)","v":46},{"$f":"IFERROR(TabelaComida[[#This Row],[CUSTO TOTAL]]/TabelaComida[[#This Row],[TOTAL DE PORÇÕES]],\"\")","v":{"v":1.6304347826086956,"d":"1.63 €"}},{"$f":"IFERROR(TabelaComida[[#This Row],[CUSTO POR PORÇÃO]]*TabelaComida[[#This Row],[PORÇÃO POR CRIANÇA]],\"\")","v":{"v":1.6304347826086956,"d":"1.63 €"}},{"$f":"IFERROR(TabelaComida[[#This Row],[CUSTO POR PORÇÃO]]*TabelaComida[[#This Row],[PORÇÃO POR ADULTO]],\"\")","v":{"v":1.6304347826086956,"d":"1.63 €"}},"Encomendar na padaria local"]
[null,"Gelado",{"v":20,"d":"20.00 €"},1,1.5,{"$f":"(TabelaComida[[#This Row],[PORÇÃO POR CRIANÇA]]*TotalCrianças)+(TabelaComida[[#This Row],[PORÇÃO POR ADULTO]]*TotalAdultos)","v":59},{"$f":"IFERROR(TabelaComida[[#This Row],[CUSTO TOTAL]]/TabelaComida[[#This Row],[TOTAL DE PORÇÕES]],\"\")","v":{"v":0.3389830508474576,"d":"0.34 €"}},{"$f":"IFERROR(TabelaComida[[#This Row],[CUSTO POR PORÇÃO]]*TabelaComida[[#This Row],[PORÇÃO POR CRIANÇA]],\"\")","v":{"v":0.3389830508474576,"d":"0.34 €"}},{"$f":"IFERROR(TabelaComida[[#This Row],[CUSTO POR PORÇÃO]]*TabelaComida[[#This Row],[PORÇÃO POR ADULTO]],\"\")","v":{"v":0.5084745762711864,"d":"0.51 €"}}]
[null,"Taças de pudim",{"v":15,"d":"15.00 €"},1,0,{"$f":"(TabelaComida[[#This Row],[PORÇÃO POR CRIANÇA]]*TotalCrianças)+(TabelaComida[[#This Row],[PORÇÃO POR ADULTO]]*TotalAdultos)","v":20},{"$f":"IFERROR(TabelaComida[[#This Row],[CUSTO TOTAL]]/TabelaComida[[#This Row],[TOTAL DE PORÇÕES]],\"\")","v":{"v":0.75,"d":"0.75 €"}},{"$f":"IFERROR(TabelaComida[[#This Row],[CUSTO POR PORÇÃO]]*TabelaComida[[#This Row],[PORÇÃO POR CRIANÇA]],\"\")","v":{"v":0.75,"d":"0.75 €"}},{"$f":"IFERROR(TabelaComida[[#This Row],[CUSTO POR PORÇÃO]]*TabelaComida[[#This Row],[PORÇÃO POR ADULTO]],\"\")","v":{"v":0,"d":"0.00 €"}},"Pacotes de compra: baunilha e chocolate"]
[null,"Cogumelos recheados",{"v":32,"d":"32.00 €"},1,2,{"$f":"(TabelaComida[[#This Row],[PORÇÃO POR CRIANÇA]]*TotalCrianças)+(TabelaComida[[#This Row],[PORÇÃO POR ADULTO]]*TotalAdultos)","v":72},{"$f":"IFERROR(TabelaComida[[#This Row],[CUSTO TOTAL]]/TabelaComida[[#This Row],[TOTAL DE PORÇÕES]],\"\")","v":{"v":0.4444444444444444,"d":"0.44 €"}},{"$f":"IFERROR(TabelaComida[[#This Row],[CUSTO POR PORÇÃO]]*TabelaComida[[#This Row],[PORÇÃO POR CRIANÇA]],\"\")","v":{"v":0.4444444444444444,"d":"0.44 €"}},{"$f":"IFERROR(TabelaComida[[#This Row],[CUSTO POR PORÇÃO]]*TabelaComida[[#This Row],[PORÇÃO POR ADULTO]],\"\")","v":{"v":0.8888888888888888,"d":"0.89 €"}},"Cogumelos recheados com queijo creme e salsichas"]
[null,"Bruschetta",{"v":22,"d":"22.00 €"},0,3,{"$f":"(TabelaComida[[#This Row],[PORÇÃO POR CRIANÇA]]*TotalCrianças)+(TabelaComida[[#This Row],[PORÇÃO POR ADULTO]]*TotalAdultos)","v":78},{"$f":"IFERROR(TabelaComida[[#This Row],[CUSTO TOTAL]]/TabelaComida[[#This Row],[TOTAL DE PORÇÕES]],\"\")","v":{"v":0.28205128205128205,"d":"0.28 €"}},{"$f":"IFERROR(TabelaComida[[#This Row],[CUSTO POR PORÇÃO]]*TabelaComida[[#This Row],[PORÇÃO POR CRIANÇA]],\"\")","v":{"v":0,"d":"0.00 €"}},{"$f":"IFERROR(TabelaComida[[#This Row],[CUSTO POR PORÇÃO]]*TabelaComida[[#This Row],[PORÇÃO POR ADULTO]],\"\")","v":{"v":0.8461538461538461,"d":"0.85 €"}},"Tomate e manjericão "]
[null,"Salmão fumado",{"v":50,"d":"50.00 €"},1,2,{"$f":"(TabelaComida[[#This Row],[PORÇÃO POR CRIANÇA]]*TotalCrianças)+(TabelaComida[[#This Row],[PORÇÃO POR ADULTO]]*TotalAdultos)","v":72},{"$f":"IFERROR(TabelaComida[[#This Row],[CUSTO TOTAL]]/TabelaComida[[#This Row],[TOTAL DE PORÇÕES]],\"\")","v":{"v":0.6944444444444444,"d":"0.69 €"}},{"$f":"IFERROR(TabelaComida[[#This Row],[CUSTO POR PORÇÃO]]*TabelaComida[[#This Row],[PORÇÃO POR CRIANÇA]],\"\")","v":{"v":0.6944444444444444,"d":"0.69 €"}},{"$f":"IFERROR(TabelaComida[[#This Row],[CUSTO POR PORÇÃO]]*TabelaComida[[#This Row],[PORÇÃO POR ADULTO]],\"\")","v":{"v":1.3888888888888888,"d":"1.39 €"}}]
[null,"Pãezinhos",{"v":20,"d":"20.00 €"},1,2,{"$f":"(TabelaComida[[#This Row],[PORÇÃO POR CRIANÇA]]*TotalCrianças)+(TabelaComida[[#This Row],[PORÇÃO POR ADULTO]]*TotalAdultos)","v":72},{"$f":"IFERROR(TabelaComida[[#This Row],[CUSTO TOTAL]]/TabelaComida[[#This Row],[TOTAL DE PORÇÕES]],\"\")","v":{"v":0.2777777777777778,"d":"0.28 €"}},{"$f":"IFERROR(TabelaComida[[#This Row],[CUSTO POR PORÇÃO]]*TabelaComida[[#This Row],[PORÇÃO POR CRIANÇA]],\"\")","v":{"v":0.2777777777777778,"d":"0.28 €"}},{"$f":"IFERROR(TabelaComida[[#This Row],[CUSTO POR PORÇÃO]]*TabelaComida[[#This Row],[PORÇÃO POR ADULTO]],\"\")","v":{"v":0.5555555555555556,"d":"0.56 €"}},"4 sacos - sortido"]
[null,"Queijo creme",{"v":10,"d":"10.00 €"},1,2,{"$f":"(TabelaComida[[#This Row],[PORÇÃO POR CRIANÇA]]*TotalCrianças)+(TabelaComida[[#This Row],[PORÇÃO POR ADULTO]]*TotalAdultos)","v":72},{"$f":"IFERROR(TabelaComida[[#This Row],[CUSTO TOTAL]]/TabelaComida[[#This Row],[TOTAL DE PORÇÕES]],\"\")","v":{"v":0.1388888888888889,"d":"0.14 €"}},{"$f":"IFERROR(TabelaComida[[#This Row],[CUSTO POR PORÇÃO]]*TabelaComida[[#This Row],[PORÇÃO POR CRIANÇA]],\"\")","v":{"v":0.1388888888888889,"d":"0.14 €"}},{"$f":"IFERROR(TabelaComida[[#This Row],[CUSTO POR PORÇÃO]]*TabelaComida[[#This Row],[PORÇÃO POR ADULTO]],\"\")","v":{"v":0.2777777777777778,"d":"0.28 €"}},"2 banheiras grandes"]
[null,"Alcaparras",{"v":12,"d":"12.00 €"},1,2,{"$f":"(TabelaComida[[#This Row],[PORÇÃO POR CRIANÇA]]*TotalCrianças)+(TabelaComida[[#This Row],[PORÇÃO POR ADULTO]]*TotalAdultos)","v":72},{"$f":"IFERROR(TabelaComida[[#This Row],[CUSTO TOTAL]]/TabelaComida[[#This Row],[TOTAL DE PORÇÕES]],\"\")","v":{"v":0.16666666666666666,"d":"0.17 €"}},{"$f":"IFERROR(TabelaComida[[#This Row],[CUSTO POR PORÇÃO]]*TabelaComida[[#This Row],[PORÇÃO POR CRIANÇA]],\"\")","v":{"v":0.16666666666666666,"d":"0.17 €"}},{"$f":"IFERROR(TabelaComida[[#This Row],[CUSTO POR PORÇÃO]]*TabelaComida[[#This Row],[PORÇÃO POR ADULTO]],\"\")","v":{"v":0.3333333333333333,"d":"0.33 €"}},"3 frascos"]
[null,"Asas de frango",{"v":45,"d":"45.00 €"},2,4,{"$f":"(TabelaComida[[#This Row],[PORÇÃO POR CRIANÇA]]*TotalCrianças)+(TabelaComida[[#This Row],[PORÇÃO POR ADULTO]]*TotalAdultos)","v":144},{"$f":"IFERROR(TabelaComida[[#This Row],[CUSTO TOTAL]]/TabelaComida[[#This Row],[TOTAL DE PORÇÕES]],\"\")","v":{"v":0.3125,"d":"0.31 €"}},{"$f":"IFERROR(TabelaComida[[#This Row],[CUSTO POR PORÇÃO]]*TabelaComida[[#This Row],[PORÇÃO POR CRIANÇA]],\"\")","v":{"v":0.625,"d":"0.63 €"}},{"$f":"IFERROR(TabelaComida[[#This Row],[CUSTO POR PORÇÃO]]*TabelaComida[[#This Row],[PORÇÃO POR ADULTO]],\"\")","v":{"v":1.25,"d":"1.25 €"}},"Adquirir na loja local"]
[null,"Paté",{"v":10,"d":"10.00 €"},4,6,{"$f":"(TabelaComida[[#This Row],[PORÇÃO POR CRIANÇA]]*TotalCrianças)+(TabelaComida[[#This Row],[PORÇÃO POR ADULTO]]*TotalAdultos)","v":236},{"$f":"IFERROR(TabelaComida[[#This Row],[CUSTO TOTAL]]/TabelaComida[[#This Row],[TOTAL DE PORÇÕES]],\"\")","v":{"v":0.0423728813559322,"d":"0.04 €"}},{"$f":"IFERROR(TabelaComida[[#This Row],[CUSTO POR PORÇÃO]]*TabelaComida[[#This Row],[PORÇÃO POR CRIANÇA]],\"\")","v":{"v":0.1694915254237288,"d":"0.17 €"}},{"$f":"IFERROR(TabelaComida[[#This Row],[CUSTO POR PORÇÃO]]*TabelaComida[[#This Row],[PORÇÃO POR ADULTO]],\"\")","v":{"v":0.2542372881355932,"d":"0.25 €"}},"Fazer na noite anterior"]
[null,"Pão de pita torrado com parmesão",{"v":14,"d":"14.00 €"},4,6,{"$f":"(TabelaComida[[#This Row],[PORÇÃO POR CRIANÇA]]*TotalCrianças)+(TabelaComida[[#This Row],[PORÇÃO POR ADULTO]]*TotalAdultos)","v":236},{"$f":"IFERROR(TabelaComida[[#This Row],[CUSTO TOTAL]]/TabelaComida[[#This Row],[TOTAL DE PORÇÕES]],\"\")","v":{"v":0.059322033898305086,"d":"0.06 €"}},{"$f":"IFERROR(TabelaComida[[#This Row],[CUSTO POR PORÇÃO]]*TabelaComida[[#This Row],[PORÇÃO POR CRIANÇA]],\"\")","v":{"v":0.23728813559322035,"d":"0.24 €"}},{"$f":"IFERROR(TabelaComida[[#This Row],[CUSTO POR PORÇÃO]]*TabelaComida[[#This Row],[PORÇÃO POR ADULTO]],\"\")","v":{"v":0.3559322033898305,"d":"0.36 €"}},"Fazer na noite anterior"]
[null,"Legumes sortidos",{"v":30,"d":"30.00 €"},4,10,{"$f":"(TabelaComida[[#This Row],[PORÇÃO POR CRIANÇA]]*TotalCrianças)+(TabelaComida[[#This Row],[PORÇÃO POR ADULTO]]*TotalAdultos)","v":340},{"$f":"IFERROR(TabelaComida[[#This Row],[CUSTO TOTAL]]/TabelaComida[[#This Row],[TOTAL DE PORÇÕES]],\"\")","v":{"v":0.08823529411764706,"d":"0.09 €"}},{"$f":"IFERROR(TabelaComida[[#This Row],[CUSTO POR PORÇÃO]]*TabelaComida[[#This Row],[PORÇÃO POR CRIANÇA]],\"\")","v":{"v":0.35294117647058826,"d":"0.35 €"}},{"$f":"IFERROR(TabelaComida[[#This Row],[CUSTO POR PORÇÃO]]*TabelaComida[[#This Row],[PORÇÃO POR ADULTO]],\"\")","v":{"v":0.8823529411764707,"d":"0.88 €"}},"Palitos de cenoura, aipo, brócolos, couve-flor, pimentos vermelhos e verdes"]
[null,"Queijo",{"v":15,"d":"15.00 €"},5,10,{"$f":"(TabelaComida[[#This Row],[PORÇÃO POR CRIANÇA]]*TotalCrianças)+(TabelaComida[[#This Row],[PORÇÃO POR ADULTO]]*TotalAdultos)","v":360},{"$f":"IFERROR(TabelaComida[[#This Row],[CUSTO TOTAL]]/TabelaComida[[#This Row],[TOTAL DE PORÇÕES]],\"\")","v":{"v":0.041666666666666664,"d":"0.04 €"}},{"$f":"IFERROR(TabelaComida[[#This Row],[CUSTO POR PORÇÃO]]*TabelaComida[[#This Row],[PORÇÃO POR CRIANÇA]],\"\")","v":{"v":0.20833333333333331,"d":"0.21 €"}},{"$f":"IFERROR(TabelaComida[[#This Row],[CUSTO POR PORÇÃO]]*TabelaComida[[#This Row],[PORÇÃO POR ADULTO]],\"\")","v":{"v":0.41666666666666663,"d":"0.42 €"}},"Sortido: queijo creme, queijo picante com nozes"]
[null,"Biscoitos",{"v":25,"d":"25.00 €"},5,10,{"$f":"(TabelaComida[[#This Row],[PORÇÃO POR CRIANÇA]]*TotalCrianças)+(TabelaComida[[#This Row],[PORÇÃO POR ADULTO]]*TotalAdultos)","v":360},{"$f":"IFERROR(TabelaComida[[#This Row],[CUSTO TOTAL]]/TabelaComida[[#This Row],[TOTAL DE PORÇÕES]],\"\")","v":{"v":0.06944444444444445,"d":"0.07 €"}},{"$f":"IFERROR(TabelaComida[[#This Row],[CUSTO POR PORÇÃO]]*TabelaComida[[#This Row],[PORÇÃO POR CRIANÇA]],\"\")","v":{"v":0.3472222222222222,"d":"0.35 €"}},{"$f":"IFERROR(TabelaComida[[#This Row],[CUSTO POR PORÇÃO]]*TabelaComida[[#This Row],[PORÇÃO POR ADULTO]],\"\")","v":{"v":0.6944444444444444,"d":"0.69 €"}},"Sortido"]
[null,"Total",{"$f":"SUBTOTAL(109,TabelaComida[CUSTO TOTAL])","v":{"v":475,"d":"475.00 €"}},{"$f":"SUBTOTAL(109,TabelaComida[PORÇÃO POR CRIANÇA])","v":34.5},{"$f":"SUBTOTAL(109,TabelaComida[PORÇÃO POR ADULTO])","v":65.5},{"$f":"SUBTOTAL(109,TabelaComida[TOTAL DE PORÇÕES])","v":2393},{"$f":"SUBTOTAL(109,TabelaComida[CUSTO POR PORÇÃO])","v":{"v":6.915706603622084,"d":"6.92 €"}},{"$f":"SUBTOTAL(109,TabelaComida[CUSTO POR CRIANÇA])","v":{"v":7.252884190656953,"d":"7.25 €"}},{"$f":"SUBTOTAL(109,TabelaComida[CUSTO POR ADULTO])","v":{"v":12.690089084110037,"d":"12.69 €"}}]

{"sheet":"Outros Elementos Essenciais","index":3,"n_rows":30,"n_cols":5,"rows_kept":30,"merged":[[14,1,14,4],[22,1,22,4]]}
[]
[]
[null,"Outros Elementos Essenciais"]
[]
[]
[null,"Equipamento e Consumíveis","Custo","Adquirido","Notas"]
[null,"Aluguer de sala/salão",{"v":250,"d":"250.00 €"},"Sim"]
[null,"Toalhas de mesa",{"v":30,"d":"30.00 €"},"Sim","Aluguer"]
[null,"Mesas e cadeiras",{"v":0,"d":"0.00 €"},null,"Incluído no aluguer do salão"]
[null,"Guardanapos para bebidas",{"v":25,"d":"25.00 €"}]
[null,"Guardanapos para comida",{"v":20,"d":"20.00 €"},null,"Aluguer"]
[null,"Serviço à mesa",{"v":50,"d":"50.00 €"},null,"Aluguer"]
[null,"Peças de vidro",{"v":25,"d":"25.00 €"},null,"Aluguer"]
[null,"Total",{"$f":"SUBTOTAL(109,Tabela1Orçamento[Custo])","v":{"v":400,"d":"400.00 €"}}]
[]
[]
[null,"Decorações","Custo","Adquirido","Notas"]
[null,"Balões",{"v":25,"d":"25.00 €"}]
[null,"Barril de hélio",{"v":50,"d":"50.00 €"},null,"Aluguer"]
[null,"Centros de mesa",{"v":100,"d":"100.00 €"},"Sim","Total 10"]
[null,"Vasos de vidro",{"v":0,"d":"0.00 €"},null,"Emprestado da Paula"]
[null,"Total",{"$f":"SUBTOTAL(109,Tabela2Orçamento[Custo])","v":{"v":175,"d":"175.00 €"}}]
[]
[]
[null,"Outros","Custo","Adquirido","Notas"]
[null,"Convites",{"v":50,"d":"50.00 €"},"Sim"]
[null,"Portes",{"v":60,"d":"60.00 €"},"Sim"]
[null,"Fotógrafo",{"v":125,"d":"125.00 €"},null,"2 horas (14:00 - 16:00)"]
[null,"Brindes",{"v":50,"d":"50.00 €"}]
[null,"Total",{"$f":"SUBTOTAL(109,Tabela3Orçamento[Custo])","v":{"v":285,"d":"285.00 €"}}]

{"sheet":"Grelha Distribuição de Assentos","index":4,"n_rows":43,"n_cols":34,"rows_kept":43,"merged":[[35,0,35,17],[35,19,35,33]]}
["Distribuição de Assentos"]
{"$rows_empty":33}
[{"$nulls":33},"*1 quadrado= aproximadamente 0,1 metros quadrados"]
["Notas",{"$nulls":18},{"$f":"\" Total de convidados confirmados: \"&ConvidadosConfirmados","v":" Total de convidados confirmados: 46"}]
[{"$nulls":19},"Pode utilizar qualquer umas das seguintes configurações de mesas:"]
[{"$nulls":20},{"$f":"ROUNDUP(ConvidadosConfirmados/6,0)&\" mesas redondas de 137 centímetros (6 lugares)\"","v":"8 mesas redondas de 137 centímetros (6 lugares)"}]
[{"$nulls":20},{"$f":"ROUNDUP(ConvidadosConfirmados/8,0) &\"mesas redondas de 152 centímetro (8 lugares)\"","v":"6mesas redondas de 152 centímetro (8 lugares)"}]
[{"$nulls":20},{"$f":"ROUNDUP(ConvidadosConfirmados/10,0)&\" mesas redondas de 182 centímetros (10 lugares)\"","v":"5 mesas redondas de 182 centímetros (10 lugares)"}]
[{"$nulls":20},{"$f":"ROUNDUP(ConvidadosConfirmados/6,0)& \" mesas quadradas de 76x182 centímetros (6 lugares)\"","v":"8 mesas quadradas de 76x182 centímetros (6 lugares)"}]
[{"$nulls":20},{"$f":"ROUNDUP(ConvidadosConfirmados/8,0)&\" mesas quadradas de 76x243 centímetros (8 lugares)\"","v":"6 mesas quadradas de 76x243 centímetros (8 lugares)"}]
[{"$nulls":19},"(Espaço preferencial entre as mesas: 1 m)"]